bitfinex-derivatives/quotes_ETHF0:USTF0_20250911
["timestamp","ask_amount","ask_price","bid_price","bid_amount"]
[1757615776062,0.229,4413.1,4413.0,0.825]
[1757615776568,0.3103,4413.4,4413.0,0.5282]
[1757615776770,0.229,4413.3,4413.1,0.2968]
[1757615777070,0.4405,4413.3,4413.2,0.4092]
[1757615777270,0.4405,4413.3,4413.2,0.706]
[1757615780076,0.2115,4413.3,4413.2,0.706]
[1757615780275,0.4405,4413.3,4413.2,0.706]
[1757615781664,0.9521,4413.3,4413.2,0.499]
[1757615781868,0.9521,4413.3,4412.9,0.2968]
[1757615782574,0.9521,4413.3,4412.8,0.1722243]
[1757615783275,0.7231,4412.9,4412.8,0.4690243]
[1757615784577,0.9521,4412.9,4412.8,0.4690243]
[1757615786176,0.9521,4412.9,4412.8,0.1722243]
[1757615786984,0.9521,4412.9,4412.8,0.4690243]
[1757615790389,0.9521,4412.9,4412.8,0.4812243]
[1757615791085,0.9521,4412.9,4412.8,0.6871243]
[1757615793086,0.4405,4412.9,4412.8,0.8826243]
[1757615794186,0.229,4412.9,4412.8,0.8826243]
[1757615794691,0.9541,4412.9,4412.8,0.4812243]
[1757615794889,0.9541,4412.9,4412.8,0.6871243]
[1757615795392,0.9541,4412.9,4412.8,0.8826243]
[1757615796587,0.9541,4412.9,4412.8,0.1722243]
[1757615796885,0.4196,4411.6,4411.5,3.8417]
[1757615797084,0.4196,4411.6,4411.5,0.6339]
[1757615797085,0.6486,4411.6,4411.5,0.6339]
[1757615797391,0.8995,4411.6,4411.5,0.309]
[1757615797785,0.6486,4411.6,4411.5,0.6405]
[1757615797988,0.6486,4411.6,4411.5,0.836]
[1757615800981,0.2129,4412.1,4412.0,0.1256]
[1757615801186,0.4419,4412.1,4412.0,0.836]
[1757615801987,3.4587,4412.7,4412.0,0.836]
[1757615802189,0.6486,4412.6,4412.5,0.836]
[1757615802789,0.4419,4412.6,4412.5,0.836]
[1757615802991,3.2078,4412.7,4412.6,0.309]
[1757615803188,32.646,4413.2,4413.1,0.7104]
[1757615803494,32.875,4413.2,4413.1,0.7104]
[1757615803692,33.0879,4413.2,4413.1,0.7104]
[1757615805296,32.646,4413.2,4413.1,0.7104]
[1757615805483,32.875,4413.2,4413.1,0.7104]
[1757615805799,1.61434336,4415.4,4413.1,0.7104]
[1757615805800,36.1087,4414.6,4414.0,0.4346]
[1757615806090,0.6486,4414.5,4414.4,0.5149]
[1757615806298,0.2129,4414.5,4414.4,0.7104]
[1757615806490,0.6486,4414.5,4414.4,0.7104]
[1757615807290,0.4419,4414.5,4414.4,0.7104]
[1757615807696,0.6486,4414.5,4414.4,0.7104]
[1757615809399,0.4419,4414.5,4414.4,0.7104]
[1757615810593,32.65,4414.6,4414.5,0.4346]
[1757615810798,3.6274,4415.3,4415.2,0.7104]
[1757615811002,4.1073,4415.3,4415.2,0.5149]
[1757615811396,3.8564,4415.3,4415.2,0.7104]
[1757615812199,0.6486,4415.3,4415.2,0.7104]
[1757615812598,0.4196,4415.3,4415.2,0.7104]
[1757615812900,0.6486,4415.3,4415.2,0.7104]
[1757615815099,0.4419,4415.3,4415.2,0.7104]
[1757615815402,0.6486,4415.3,4415.2,0.7104]
[1757615815993,0.8995,4415.3,4415.2,0.7104]
[1757615817302,0.6486,4415.3,4415.2,0.7104]
[1757615817808,0.8996,4415.3,4415.2,0.7104]
[1757615818998,0.655,4414.9,4414.8,0.2963]
[1757615819295,0.229,4414.9,4414.6,0.2963]
[1757615819696,0.404,4414.7,4414.6,0.4962]
[1757615819902,0.655,4414.7,4414.6,0.4962]
[1757615820800,0.404,4414.7,4414.6,0.4962]
[1757615821301,0.404,4414.7,4414.6,0.7028]
[1757615821798,0.251,4414.6,4414.5,0.1256]
[1757615821991,0.229,4414.9,4414.1,0.2963]
[1757615821992,0.655,4414.2,4414.1,0.2963]
[1757615822194,0.633,4414.2,4413.6,0.2963]
[1757615822506,0.2089,4413.6,4413.5,0.8284]
[1757615822694,0.229,4413.6,4413.5,0.8284]
[1757615824110,0.633,4413.6,4413.5,0.8284]
[1757615824695,0.884,4413.6,4413.5,0.6218]
[1757615825803,0.884,4413.6,4413.5,0.2963]
[1757615826002,0.884,4413.6,4413.0,3.333]
[1757615826003,0.251,4413.5,4413.1,0.2963]
[1757615826205,0.404,4413.2,4413.1,0.7028]
[1757615828600,0.633,4413.6,4413.5,0.1252]
[1757615828801,0.884,4413.6,4413.5,0.6214]
[1757615830401,0.884,4413.6,4413.1,0.2963]
[1757615830605,0.633,4413.6,4413.1,0.2963]
[1757615830906,0.2089,4413.1,4413.0,0.5317]
[1757615831204,0.4379,4413.1,4413.0,0.5317]
[1757615831404,0.4379,4413.1,4413.0,0.828]
[1757615831804,0.4379,4413.1,4413.0,4.0358]
[1757615835512,0.4379,4413.1,4413.0,0.828]
[1757615836606,0.2089,4413.1,4413.0,0.828]
[1757615836807,0.4379,4413.1,4413.0,0.828]
[1757615837008,0.229,4413.1,4413.0,0.828]
[1757615838312,0.4379,4413.1,4413.0,0.828]
[1757615838623,0.4379,4413.1,4413.0,0.2963]
[1757615838624,0.884,4413.1,4413.0,0.2963]
[1757615838821,0.251,4413.0,4412.5,3.6293]
[1757615839016,0.655,4412.6,4412.5,3.6293]
[1757615839422,0.655,4412.6,4412.5,3.5041]
[1757615840312,0.655,4412.6,4412.5,3.8292]
[1757615840921,0.404,4412.6,4412.5,4.0358]
[1757615841922,0.655,4413.5,4413.4,0.1999]
[1757615842223,1.43090892,4413.5,4413.4,0.2963]
[1757615842517,1.17990892,4413.5,4413.0,0.1252]
[1757615842718,0.404,4413.4,4413.3,0.1999]
[1757615842920,0.404,4413.4,4413.3,0.7028]
[1757615843611,0.633,4413.4,4413.3,0.7028]
[1757615843814,0.4379,4413.4,4413.3,0.7028]
[1757615844124,3.2078,4413.7,4413.6,0.7028]
[1757615844416,4.0918,4413.7,4413.6,0.2963]
[1757615844616,3.8408,4413.7,4413.6,0.7028]
[1757615844832,4.63895677,4413.7,4413.6,0.2963]
[1757615845326,4.38795677,4413.7,4413.6,0.4962]
[1757615845919,4.38795677,4413.7,4413.6,0.7028]
[1757615846222,3.98432055,4413.7,4413.6,0.7028]
[1757615846620,4.19322055,4413.7,4413.6,0.7028]
[1757615847122,3.6457,4413.7,4413.6,0.7028]
[1757615847430,0.229,4413.7,4413.6,0.7028]
[1757615847919,0.1976,4414.1,4414.0,0.1235]
[1757615848117,0.97447768,4414.1,4414.0,0.823]
[1757615848318,0.54787768,4414.1,4414.0,0.823]
[1757615848516,0.77687768,4414.1,4414.0,0.823]
[1757615849314,0.54787768,4414.1,4414.0,0.823]
[1757615849727,0.77687768,4414.1,4414.0,0.823]
[1757615849931,32.637,4414.4,4414.1,0.295]
[1757615850121,32.637,4414.4,4414.0,0.528]
[1757615850122,0.229,4414.3,4414.2,0.6995]
[1757615850818,32.637,4414.4,4414.3,0.6995]
[1757615851126,32.866,4414.4,4414.3,0.6995]
[1757615851626,32.637,4414.4,4414.3,0.6995]
[1757615851821,32.866,4414.4,4414.3,0.6995]
[1757615852726,32.637,4414.4,4414.3,0.6995]
[1757615852927,32.866,4414.4,4414.3,0.6995]
[1757615853123,3.2078,4415.0,4414.9,0.6995]
[1757615853328,3.4368,4415.0,4414.9,0.6995]
[1757615854128,3.6344,4415.0,4414.9,0.6995]
[1757615854335,0.6317,4415.0,4414.9,0.6995]
[1757615856327,0.8827,4415.0,4414.9,0.6995]
[1757615856926,0.8827,4415.0,4414.9,0.496]
[1757615857321,0.6317,4415.0,4414.9,0.6995]
[1757615857532,0.4266,4415.0,4414.9,0.6995]
[1757615858031,0.6317,4415.0,4414.9,0.6995]
[1757615858233,0.4027,4415.0,4414.9,0.6995]
[1757615858434,0.6317,4415.0,4414.9,0.6995]
[1757615858826,0.1976,4415.1,4415.0,0.528]
[1757615859122,0.4266,4415.1,4415.0,0.528]
[1757615859328,0.4266,4415.1,4415.0,0.823]
[1757615859831,0.8827,4415.1,4415.0,0.823]
[1757615860227,0.6317,4415.1,4415.0,0.823]
[1757615861032,0.23703528,4415.4,4415.3,0.4045]
[1757615861333,0.46603528,4415.4,4415.3,0.6995]
[1757615862732,32.643,4415.8,4415.5,0.1235]
[1757615862930,0.4266,4415.7,4415.6,0.201]
[1757615863124,0.4266,4415.7,4415.6,0.6995]
[1757615863826,0.1976,4415.7,4415.6,0.6995]
[1757615864032,0.229,4415.7,4415.6,0.6995]
[1757615864230,0.4266,4415.7,4415.6,0.6995]
[1757615867835,32.643,4415.8,4415.7,0.295]
[1757615868134,32.872,4415.8,4415.7,0.6995]
[1757615869834,33.0696,4415.8,4415.7,0.6995]
[1757615870641,32.872,4415.8,4415.7,0.6995]
[1757615871341,33.0696,4415.8,4415.7,0.6995]
[1757615871532,33.2747,4415.8,4415.7,0.6995]
[1757615871934,33.5268,4415.8,4415.7,0.6995]
[1757615872433,33.5268,4415.8,4415.7,0.496]
[1757615872734,0.4027,4415.2,4415.1,0.295]
[1757615872939,0.8838,4415.2,4415.1,0.295]
[1757615873142,0.8838,4415.2,4415.1,0.496]
[1757615873536,0.6317,4415.2,4415.1,0.6995]
[1757615873933,0.4266,4415.2,4415.1,0.6995]
[1757615875037,32.8951,4415.8,4415.5,0.1235]
[1757615875233,0.4027,4415.6,4415.5,0.3245]
[1757615875641,0.4027,4415.6,4415.5,0.6195]
[1757615876239,0.95017473,4415.6,4415.5,0.6195]
[1757615876634,1.20227473,4415.6,4415.5,0.6195]
[1757615877238,0.6548,4415.6,4415.5,0.6195]
[1757615878339,0.6548,4415.6,4415.5,0.4185]
[1757615878539,0.6548,4415.6,4415.5,0.6161]
[1757615878740,0.6534,4415.6,4415.5,0.8113]
[1757615879040,0.6534,4415.6,4415.5,0.4158]
[1757615879636,0.6534,4415.6,4415.5,0.6161]
[1757615880840,0.4027,4415.6,4415.5,0.8113]
[1757615881339,32.643,4415.8,4415.5,0.8113]
[1757615881544,0.229,4415.7,4415.6,0.7144]
[1757615881743,0.6318,4415.7,4415.6,0.7144]
[1757615881941,1.43133585,4415.7,4415.6,0.7144]
[1757615882135,1.43131042,4415.7,4415.6,0.5192]
[1757615882339,0.8825,4415.7,4415.6,0.5192]
[1757615882645,0.229,4415.7,4415.6,0.7144]
[1757615883151,0.97222322,4415.7,4415.6,0.7144]
[1757615883449,0.97222322,4415.7,4415.6,0.5192]
[1757615883450,0.8825,4415.7,4415.6,0.5192]
[1757615883745,0.6535,4415.2,4415.1,0.5192]
[1757615883941,0.6318,4415.2,4415.1,0.7144]
[1757615888954,1.18024293,4415.2,4415.1,0.7144]
[1757615891253,1.18024293,4415.2,4415.1,0.5192]
[1757615891254,1.43094293,4415.2,4415.1,0.5192]
[1757615891450,1.43094293,4415.2,4415.1,0.3189]
[1757615893157,0.6535,4414.7,4414.6,0.5192]
[1757615893349,0.6535,4414.7,4414.6,0.7144]
[1757615893350,0.6318,4414.7,4414.6,0.7144]
[1757615893761,3.2078,4415.0,4414.7,0.3189]
[1757615893955,0.4028,4414.8,4414.7,0.7144]
[1757615894255,0.2507,4414.7,4414.5,0.3238]
[1757615894448,0.8825,4414.6,4414.5,0.3238]
[1757615894861,0.8825,4414.6,4414.5,0.6427]
[1757615895353,0.6318,4414.6,4414.5,0.8379]
[1757615895554,0.4233,4414.6,4414.5,0.8379]
[1757615897867,3.6106,4415.5,4415.4,0.2003]
[1757615898062,4.63847674,4415.5,4415.4,0.5192]
[1757615898255,4.63847674,4415.5,4415.4,0.3189]
[1757615898755,0.4028,4414.7,4414.6,0.3189]
[1757615898960,4.0903,4414.7,4414.6,0.3189]
[1757615899552,4.38766686,4414.7,4414.6,0.7144]
[1757615900154,4.38762954,4414.7,4414.6,0.7144]
[1757615900857,0.6318,4414.7,4414.6,0.7144]
[1757615901063,0.8825,4414.7,4414.6,0.7144]
[1757615901660,0.6318,4414.7,4414.6,0.7144]
[1757615902663,0.8825,4414.7,4414.6,0.5192]
[1757615903865,0.6318,4414.7,4414.6,0.7144]
[1757615904863,0.8825,4414.7,4414.6,0.7144]
[1757615905962,0.6318,4414.7,4414.6,0.7144]
[1757615907564,0.8829,4414.7,4414.6,0.7144]
[1757615907961,0.8829,4414.7,4414.6,0.3189]
[1757615907962,4.6385656,4414.7,4414.6,0.3189]
[1757615911263,4.6385656,4414.7,4414.6,0.5316]
[1757615911569,3.6311,4414.7,4414.6,0.7407]
[1757615912261,4.17881807,4414.7,4414.6,0.7407]
[1757615913269,4.37371807,4414.7,4414.6,0.7407]
[1757615913662,4.62481807,4414.7,4414.6,0.5316]
[1757615917466,4.62481807,4414.7,4414.3,0.3119]
[1757615917670,0.2057,4414.1,4414.0,0.5453]
[1757615917873,0.4347,4414.1,4414.0,0.5453]
[1757615918070,0.4347,4414.1,4414.0,0.8572]
[1757615918373,0.98277716,4414.1,4414.0,0.8572]
[1757615919069,1.17767716,4414.1,4414.0,0.8572]
[1757615919371,1.42877716,4414.1,4414.0,0.8572]
[1757615920275,1.42877716,4414.1,4414.0,0.3119]
[1757615921369,1.42877716,4414.1,4414.0,0.65]
[1757615922365,1.17767716,4414.1,4414.0,0.8591]
[1757615925983,0.77707716,4414.1,4414.0,0.8591]
[1757615927276,0.229,4414.1,4414.0,0.8591]
[1757615927671,0.2511,4414.6,4414.0,0.8591]
[1757615927873,1.17774959,4414.5,4414.4,0.7337]
[1757615929368,0.94874959,4414.5,4414.4,0.7337]
[1757615929571,1.17774959,4414.5,4414.4,0.7337]
[1757615930072,0.94874959,4414.5,4414.4,0.7337]
[1757615930474,3.2078,4415.2,4414.4,0.96022999]
[1757615930680,1.42898109,4415.1,4415.0,0.65]
[1757615931372,1.17788109,4415.1,4415.0,0.8591]
[1757615933794,1.17788109,4415.1,4415.0,0.4373]
[1757615933795,1.42898109,4415.1,4415.0,0.4373]
[1757615933986,1.42898109,4415.1,4415.0,0.3119]
[1757615934387,1.42898109,4415.1,4415.0,0.5246]
[1757615934691,1.42898109,4415.1,4415.0,0.65]
[1757615937596,0.98298109,4415.1,4415.0,0.8591]
[1757615937898,1.17718109,4415.1,4415.0,0.8591]
[1757615938195,1.42828109,4415.1,4415.0,0.65]
[1757615938396,1.17718109,4415.1,4415.0,0.86]
[1757615938996,1.42828109,4415.1,4415.0,0.86]
[1757615939196,1.42828109,4415.1,4415.0,0.3119]
[1757615940099,1.42795007,4415.1,4415.0,0.3119]
[1757615940286,1.42795007,4415.1,4415.0,0.5266]
[1757615940492,0.54795007,4415.1,4415.0,0.8657]
[1757615940695,0.77695007,4415.1,4415.0,0.8657]
[1757615941394,0.97905007,4415.1,4415.0,0.8657]
[1757615942397,0.54795007,4415.1,4415.0,0.8657]
[1757615942697,0.2021,4415.7,4415.6,0.7293]
[1757615942996,0.8764,4415.7,4415.6,0.5193]
[1757615943199,1.42437609,4415.7,4415.6,0.3046]
[1757615943700,1.42437609,4415.7,4415.1,0.3046]
[1757615943900,0.3963,4415.2,4415.1,0.5193]
[1757615944092,1.17316959,4415.2,4415.1,0.7293]
[1757615944293,0.6253,4415.2,4415.1,0.7293]
[1757615947501,0.4311,4415.2,4415.1,0.7293]
[1757615947704,3.4589,4415.8,4415.2,0.3046]
[1757615947898,1.17289401,4415.7,4415.6,0.2147]
[1757615948196,1.17289401,4415.7,4415.6,0.5193]
[1757615948402,1.42399401,4415.7,4415.6,0.5193]
[1757615949391,0.94389401,4415.7,4415.6,0.5193]
[1757615949593,1.42399401,4415.7,4415.6,0.7293]
[1757615949794,1.42399401,4415.7,4415.6,0.5193]
[1757615951002,1.42399401,4415.7,4415.6,0.3046]
[1757615954993,1.17289401,4415.7,4415.6,0.7293]
[1757615955200,0.94389401,4415.7,4415.6,0.7293]
[1757615955401,1.42399401,4415.7,4415.6,0.3046]
[1757615956499,0.94389401,4415.7,4415.6,0.7293]
[1757615956699,1.42399401,4415.7,4415.6,0.7293]
[1757615957401,1.42399401,4415.7,4415.6,0.3046]
[1757615957708,1.17289401,4415.7,4415.6,0.7293]
[1757615959910,1.42399401,4415.7,4415.6,0.3046]
[1757615960710,1.42399401,4415.7,4415.1,0.3046]
[1757615960911,0.2021,4415.2,4415.1,0.7293]
[1757615961106,0.97869401,4415.2,4415.1,0.7293]
[1757615964003,0.77659401,4415.2,4415.1,0.7293]
[1757615970408,0.3012,4416.2,4415.5,0.1165]
[1757615970608,0.2031,4416.2,4416.1,0.7319]
[1757615970810,3.2078,4416.4,4416.1,0.4105]
[1757615971006,0.229,4416.3,4416.2,0.7319]
[1757615971209,0.229,4416.3,4416.2,0.4105]
[1757615971804,0.229,4416.3,4416.2,0.7319]
[1757615972813,32.635,4416.6,4416.5,0.1165]
[1757615973018,32.864,4416.6,4416.5,0.8484]
[1757615973613,32.635,4416.6,4416.5,0.8484]
[1757615973814,32.864,4416.6,4416.5,0.8484]
[1757615974220,0.7196,4417.1,4417.0,0.1957]
[1757615974518,0.9486,4417.1,4417.0,0.7319]
[1757615974713,0.9486,4417.1,4417.0,0.5171]
[1757615974914,0.7196,4416.6,4416.5,0.5171]
[1757615975107,0.9486,4416.6,4416.5,0.7319]
[1757615975706,0.9486,4416.6,4416.5,0.1957]
[1757615975913,0.7196,4416.3,4416.2,0.5171]
[1757615976114,0.7196,4416.3,4416.2,0.7319]
[1757615976418,0.229,4416.6,4416.5,0.8484]
[1757615978217,0.7333,4416.6,4416.5,0.8484]
[1757615979117,0.9486,4416.6,4416.5,0.8484]
[1757615980322,0.9486,4416.6,4416.5,0.7319]
[1757615982612,0.9486,4416.6,4416.5,0.1957]
[1757615982816,0.9486,4416.6,4416.4,3.2078]
[1757615982817,0.7196,4416.5,4416.4,3.7249]
[1757615983225,0.7196,4416.5,4416.4,0.5171]
[1757615987126,0.7196,4416.5,4416.4,0.7319]
[1757615991131,0.5043,4416.5,4416.4,0.7319]
[1757615991329,0.229,4416.6,4416.5,0.8484]
[1757615991526,0.2031,4416.7,4416.5,0.1165]
[1757615991729,0.7196,4416.7,4416.6,0.7319]
[1757615991930,0.9486,4416.7,4416.6,0.7319]
[1757615998431,0.2054,4417.1,4417.0,0.8389]
[1757615998738,0.7565,4417.1,4417.0,0.8389]
[1757615999138,0.77440774,4417.1,4417.0,0.8389]
[1757615999435,32.6872,4418.0,4417.0,3.7429]
[1757615999738,1.50874093,4417.9,4417.8,0.7125]
[1757615999932,0.9633,4417.9,4417.8,0.7125]
[1757616000131,1.50937186,4417.9,4417.8,0.7125]
[1757616002331,0.9633,4417.9,4417.8,0.7125]
[1757616002535,0.3221,4417.8,4417.5,3.5116]
[1757616002840,0.2054,4417.6,4417.5,4.0467]
[1757616003240,0.229,4417.9,4417.8,0.4087]
[1757616003439,0.229,4417.9,4417.8,0.7125]
[1757616004240,3.5299,4418.8,4417.8,0.4087]
[1757616004433,0.3221,4419.3,4418.8,0.7125]
[1757616004835,0.229,4419.4,4418.8,0.7125]
[1757616005237,0.229,4419.7,4418.8,4.635]
[1757616005435,0.4122,4419.6,4419.5,0.204]
[1757616005633,0.7343,4419.6,4419.5,0.5078]
[1757616005836,0.2054,4419.6,4419.5,0.8389]
[1757616006037,0.229,4419.7,4419.5,0.5351]
[1757616006232,0.2054,4420.0,4419.9,0.7125]
[1757616006439,0.4344,4420.0,4419.9,0.7125]
[1757616006639,0.229,4420.0,4419.9,0.7125]
[1757616007138,0.4122,4420.7,4420.6,0.7125]
[1757616007339,0.3221,4421.4,4421.0,0.1264]
[1757616007548,0.7565,4421.4,4421.3,0.4087]
[1757616007742,0.1267,4422.0,4421.1,4.22618]
[1757616008038,0.1267,4422.0,4421.9,3.2078]
[1757616008039,0.4488,4422.0,4421.9,3.2078]
[1757616008239,0.4488,4422.0,4421.9,44.0078]
[1757616008539,0.861,4421.5,4421.4,3.2078]
[1757616008845,0.861,4421.0,4420.9,3.2078]
[1757616009049,0.4488,4421.0,4420.9,3.2078]
[1757616009347,0.4488,4421.0,4420.9,7.665]
[1757616009541,0.6542,4421.0,4420.9,3.4388]
[1757616009742,0.861,4421.0,4420.9,3.2078]
[1757616010450,0.6542,4421.0,4420.9,3.2078]
[1757616011543,0.861,4421.0,4420.9,3.2078]
[1757616011749,0.861,4420.5,4420.4,3.2078]
[1757616017449,0.861,4420.5,4419.9,3.2078]
[1757616017650,0.861,4420.0,4419.9,3.2078]
[1757616034052,0.6542,4420.0,4419.9,3.2078]
[1757616034248,0.6542,4420.0,4419.9,3.43405]
[1757616034249,0.4488,4420.0,4419.9,3.43405]
[1757616034852,0.4488,4420.0,4419.9,3.2078]
[1757616035363,0.4488,4420.0,4419.9,7.43405]
[1757616036755,0.4488,4420.0,4419.9,7.2078]
[1757616037059,0.3137,4421.4,4419.9,81.4998]
[1757616037258,0.1253,4422.0,4421.4,0.407]
[1757616037259,0.0733,4422.0,4421.4,0.407]
[1757616037448,0.1253,4422.5,4421.9,3.2078]
[1757616037653,0.1253,4422.5,4421.0,1.01761]
[1757616037654,0.1253,4422.5,4422.4,3.2078]
[1757616037858,0.1253,4422.5,4422.4,3.4398]
[1757616038559,0.1253,4422.5,4422.4,44.2398]
[1757616039056,0.1253,4422.5,4422.4,44.0078]
[1757616039362,0.439,4422.5,4422.4,44.0078]
[1757616039562,0.439,4422.5,4422.4,44.2398]
[1757616040166,0.439,4422.5,4422.4,3.4398]
[1757616046055,0.8365,4422.5,4422.4,3.2078]
[1757616046266,4.8365,4422.5,4422.4,3.2078]
[1757616047464,4.8365,4422.5,4422.0,0.232]
[1757616047669,0.8365,4422.5,4422.0,0.232]
[1757616048465,0.5228,4422.5,4421.9,3.2078]
[1757616048661,0.8365,4422.0,4421.9,3.2078]
[1757616053370,0.1253,4422.0,4421.9,3.2078]
[1757616053575,0.3197,4422.5,4421.9,3.4388]
[1757616053963,0.1253,4422.5,4422.4,3.2078]
[1757616055179,0.5228,4422.5,4422.4,3.2078]
[1757616055375,0.8365,4422.5,4422.4,3.4388]
[1757616056874,0.8365,4422.5,4422.4,3.2078]
[1757616061769,0.6334,4422.5,4422.4,3.2078]
[1757616062375,0.8419,4422.5,4422.4,3.2078]
[1757616064479,0.439,4422.5,4422.4,3.2078]
[1757616065380,0.298,4422.9,4422.4,3.2078]
[1757616065677,0.1253,4423.0,4422.5,0.231]
[1757616065879,0.6238,4423.0,4422.9,3.2078]
[1757616066078,0.8323,4423.0,4422.9,3.2078]
[1757616066472,0.8323,4423.0,4422.4,3.2078]
[1757616066473,0.8341,4422.5,4422.4,3.2078]
[1757616066777,0.8341,4422.0,4421.9,3.2078]
[1757616067276,0.6256,4422.0,4421.9,3.2078]
[1757616067673,0.1253,4423.0,4421.9,7.66494]
[1757616067871,0.298,4423.4,4422.9,3.2078]
[1757616068077,0.298,4423.4,4423.0,0.231]
[1757616068267,0.4985,4423.4,4423.0,0.231]
[1757616068473,0.1271,4423.0,4422.9,3.2078]
[1757616068673,0.8341,4423.0,4422.9,3.4388]
[1757616068880,0.8341,4423.0,4422.9,3.2078]
[1757616069475,0.6256,4423.0,4422.9,3.2078]
[1757616069778,0.4251,4423.0,4422.9,3.2078]
[1757616070272,0.1271,4423.0,4422.9,3.2078]
[1757616070480,0.4251,4423.0,4422.9,3.4388]
[1757616070880,0.8341,4423.0,4422.9,3.4388]
[1757616071086,0.8341,4423.0,4422.9,3.2078]
[1757616071574,0.8341,4423.0,4422.4,40.8]
[1757616071781,0.8341,4422.5,4422.4,0.231]
[1757616072380,0.4251,4422.5,4422.4,0.231]
[1757616072577,0.6256,4422.5,4422.4,0.231]
[1757616073574,0.8341,4422.5,4422.4,0.231]
[1757616075982,0.298,4422.4,4422.3,3.2078]
[1757616076172,0.707,4422.4,4422.3,3.4388]
[1757616076378,0.707,4422.4,4422.3,3.2078]
[1757616081088,0.707,4421.7,4421.6,3.2078]
[1757616082486,0.2005,4421.9,4421.6,3.2078]
[1757616082685,0.1271,4422.0,4421.6,3.2078]
[1757616082886,0.298,4421.9,4421.6,3.2078]
[1757616083083,0.4985,4421.9,4421.6,3.2078]
[1757616083287,0.298,4421.8,4421.6,3.2078]
[1757616083491,0.298,4421.7,4421.6,3.2078]
[1757616084789,0.298,4421.7,4421.6,3.4398]
[1757616086683,0.1271,4422.0,4421.6,3.4398]
[1757616087491,0.298,4422.2,4421.8,1.62467505]
[1757616087692,0.3028,4422.4,4422.1,3.2078]
[1757616087997,0.3028,4422.4,4422.1,3.4398]
[1757616088386,0.3028,4422.3,4422.1,3.4398]
[1757616088589,0.2003,4422.2,4422.1,3.4398]
[1757616088798,0.6982,4422.2,4422.1,3.4398]
[1757616091304,0.6982,4422.2,4422.1,3.75245309]
[1757616092694,0.6982,4422.2,4422.1,3.52045309]
[1757616103210,0.5031,4422.2,4422.1,3.52045309]
[1757616103709,0.5031,4422.2,4422.1,0.31265309]
[1757616103902,0.5031,4422.2,4422.1,3.52045309]
[1757616106814,0.3028,4422.2,4422.1,3.52045309]
[1757616110232,0.1271,4422.5,4422.1,3.52045309]
[1757616110515,0.1271,4422.5,4422.2,0.31265309]
[1757616110816,0.6982,4422.4,4422.3,0.31265309]
[1757616113818,0.03936908,4423.1,4422.3,4.53877309]
[1757616114018,0.3028,4423.4,4423.0,3.2078]
[1757616114217,0.3256,4423.5,4423.1,0.54565309]
[1757616114218,0.5031,4423.2,4423.1,0.54565309]
[1757616114521,0.5031,4423.2,4423.1,0.31265309]
[1757616115418,0.3028,4423.2,4423.1,0.31265309]
[1757616119823,0.5166,4423.2,4423.1,0.31265309]
[1757616120014,0.7237,4423.2,4423.1,0.31265309]
[1757616121222,0.4209,4423.2,4423.0,3.2078]
[1757616121424,0.5092,4423.1,4423.0,3.2078]
[1757616122622,0.2954,4423.1,4423.0,3.2078]
[1757616122825,0.5092,4423.1,4423.0,3.2078]
[1757616125724,0.7163,4423.1,4423.0,3.2078]
[1757616127730,0.5092,4423.1,4423.0,3.2078]
[1757616127931,0.2954,4423.1,4423.0,3.2078]
[1757616128734,0.1253,4423.5,4423.0,7.4398]
[1757616129029,0.2954,4423.4,4423.0,3.4398]
[1757616129334,0.1253,4423.5,4423.0,3.4398]
[1757616130530,0.2954,4423.4,4423.0,3.66588]
[1757616130729,0.2954,4423.4,4423.0,3.4398]
[1757616130928,0.2954,4423.4,4423.0,3.2078]
[1757616131129,0.5092,4423.3,4423.1,0.232]
[1757616131329,0.2138,4423.3,4423.0,3.2078]
[1757616131527,0.7163,4423.2,4423.1,0.232]
[1757616133026,0.5092,4423.2,4423.1,0.232]
[1757616133227,0.2954,4423.2,4423.1,0.232]
[1757616139137,0.7163,4423.2,4423.1,0.232]
[1757616141833,0.7163,4423.2,4423.0,3.2078]
[1757616141834,0.2954,4423.1,4423.0,3.2078]
[1757616142139,0.7163,4423.1,4423.0,3.4398]
[1757616148542,0.7163,4423.1,4423.0,3.2078]
[1757616151443,0.7163,4423.1,4423.0,3.51849234]
[1757616152745,0.7163,4423.1,4423.0,3.51848453]
[1757616163162,0.7163,4423.1,4423.0,3.51822419]
[1757616169464,0.2954,4423.1,4423.0,3.51822419]
[1757616169859,0.4926,4423.1,4423.0,3.51822419]
[1757616170769,0.2954,4423.1,4423.0,3.51822419]
[1757616173065,0.3087,4423.4,4423.0,3.51822419]
[1757616173271,0.3087,4423.4,4423.1,0.31042419]
[1757616173466,0.3087,4423.4,4423.2,0.31042419]
[1757616173667,0.3087,4423.4,4423.3,0.31042419]
[1757616176176,0.5059,4423.4,4423.3,0.31042419]
[1757616179195,0.3087,4423.4,4423.3,0.31042419]
[1757616180601,0.7201,4423.4,4423.3,0.31042419]
[1757616180805,0.7201,4423.4,4423.3,41.11042419]
[1757616181093,0.7201,4423.4,4423.3,0.31042419]
[1757616181395,0.7201,4423.4,4423.0,3.4378]
[1757616181396,0.4114,4423.4,4423.0,3.4378]
[1757616181699,0.2041,4423.1,4423.0,3.4378]
[1757616181890,0.5168,4423.1,4423.0,3.4378]